bitfinex/quotes_SOLUSD_20260213
["timestamp","ask_amount","ask_price","bid_price","bid_amount"]
[1771002003278,0.43096537,84.326,84.293,0.46649359]
[1771002003279,11.85887933,84.325,84.293,0.46649359]
[1771002003678,0.43084225,84.324,84.293,0.46649359]
[1771002004081,3.89639994,84.32,84.293,0.46649359]
[1771002004293,4.32712049,84.32,84.293,0.46649359]
[1771002004699,11.85887933,84.325,84.293,0.46649359]
[1771002004898,12.28959988,84.325,84.293,0.46649359]
[1771002005096,44.34,84.327,84.301,0.46649359]
[1771002005293,56.1977996,84.333,84.303,0.46649359]
[1771002005483,0.43060024,84.329,84.294,0.46649359]
[1771002005800,3.89639994,84.33,84.291,0.46649359]
[1771002006098,103.5,84.385,84.291,0.46649359]
[1771002006099,0.43048132,84.339,84.314,0.46649359]
[1771002006282,0.43048132,84.339,84.291,43.32]
[1771002006283,3.89639994,84.33,84.301,0.46649359]
[1771002006603,0.43048132,84.329,84.301,0.46649359]
[1771002006802,41.49487322,84.348,84.276,43.3]
[1771002006803,3.89639994,84.31,84.281,0.46649359]
[1771002007178,0.43036376,84.313,84.283,0.46649359]
[1771002007381,0.43036376,84.309,84.283,0.46649359]
[1771002007597,0.43036376,84.309,84.276,0.46649359]
[1771002008297,11.86070784,84.312,84.276,0.46649359]
[1771002008298,3.89639994,84.3,84.276,0.46649359]
[1771002008503,0.43024755,84.299,84.266,0.46649359]
[1771002008701,0.43024755,84.299,84.259,0.46649359]
[1771002008891,0.43024755,84.289,84.251,0.46649359]
[1771002009098,3.89639994,84.29,84.261,0.46649359]
[1771002009595,11.86394428,84.289,84.261,0.46649359]
[1771002009799,44.34,84.303,84.263,0.46649359]
[1771002009983,11.86248724,84.3,84.263,0.46649359]
[1771002010384,15.75888718,84.3,84.263,0.46649359]
[1771002010778,44.34,84.303,84.262,41.53711044]
[1771002010779,44.34,84.303,84.271,0.46649359]
[1771002011287,3.89639994,84.31,84.271,0.46649359]
[1771002011679,11.86000353,84.318,84.273,0.46649359]
[1771002011886,12.28991041,84.318,84.273,0.46649359]
[1771002012103,3.89639994,84.31,84.273,0.46649359]
[1771002012498,3.89639994,84.3,84.273,0.46649359]
[1771002012699,3.89639994,84.29,84.251,41.5425336]
[1771002012895,44.36,84.289,84.251,0.46649359]
[1771002013202,3.89639994,84.28,84.242,0.46649359]
[1771002013400,44.36,84.289,84.251,0.46649359]
[1771002013703,44.36,84.289,84.252,0.46649359]
[1771002013704,11.86535198,84.279,84.252,0.46649359]
[1771002014492,11.86535198,84.279,84.253,0.46649359]
[1771002014896,0.42968624,84.288,84.253,0.46649359]
[1771002015102,56.22403047,84.289,84.253,0.46649359]
[1771002015308,3.89639994,84.29,84.253,0.46649359]
[1771002015490,11.86394428,84.289,84.253,0.46649359]
[1771002016510,47.41894385,84.355,84.261,0.46649359]
[1771002016511,3.89639994,84.3,84.261,0.46649359]
[1771002016717,44.38,84.296,84.261,0.46649359]
[1771002017398,11.86253692,84.299,84.261,0.46649359]
[1771002017901,3.89639994,84.29,84.261,0.46649359]
[1771002018230,0.42925995,84.298,84.261,0.46649359]
[1771002018792,0.42925995,84.298,84.263,0.46649359]
[1771002018793,3.89639994,84.29,84.263,0.46649359]
[1771002019406,11.86281836,84.297,84.241,0.46649359]
[1771002019407,3.89639994,84.28,84.241,0.46649359]
[1771002019602,11.86281836,84.297,84.261,0.46649359]
[1771002019807,0.42905408,84.294,84.261,0.46649359]
[1771002020100,0.42895292,84.279,84.241,0.46649359]
[1771002020905,0.42895292,84.279,84.243,0.46649359]
[1771002021088,3.89639994,84.27,84.243,0.46649359]
[1771002021706,3.89639994,84.28,84.243,0.46649359]
[1771002022007,11.86535198,84.279,84.243,0.46649359]
[1771002022205,0.42875406,84.278,84.243,0.46649359]
[1771002022582,11.86486974,84.283,84.251,0.46649359]
[1771002022988,3.90034404,84.28,84.251,0.46649359]
[1771002023408,44.4,84.279,84.251,0.46649359]
[1771002023611,0.42865635,84.278,84.251,0.46649359]
[1771002024210,0.42865635,84.278,84.243,12.33689572]
[1771002024404,0.42855975,84.269,84.221,0.46649359]
[1771002024607,44.84855975,84.268,84.231,0.46649359]
[1771002025307,44.42,84.271,84.241,0.46649359]
[1771002026293,44.42,84.271,84.24,3.90034404]
[1771002026294,11.86470972,84.284,84.251,0.46649359]
[1771002026493,44.42,84.281,84.251,0.46649359]
[1771002027116,0.42827657,84.298,84.261,0.46649359]
[1771002027293,0.42827657,84.298,84.263,0.46649359]
[1771002027294,11.86380353,84.29,84.263,0.46649359]
[1771002027812,11.86253692,84.299,84.271,0.46649359]
[1771002028107,11.86028583,84.315,84.281,0.46649359]
[1771002028309,44.44,84.314,84.281,0.46649359]
[1771002028493,11.86028583,84.315,84.281,0.46649359]
[1771002028688,3.90034404,84.31,84.281,0.46649359]
[1771002029110,3.90034404,84.3,84.271,0.46649359]
[1771002029303,3.90034404,84.3,84.249,43.2]
[1771002029304,11.86408504,84.288,84.263,0.46649359]
[1771002029507,3.90034404,84.28,84.256,11.86851538]
[1771002029811,4.3284372,84.28,84.247,0.46649359]
[1771002030012,3.90034404,84.27,84.239,0.46649359]
[1771002030196,0.42800304,84.269,84.232,0.46649359]
[1771002030396,3.90034404,84.26,84.232,0.46649359]
[1771002030913,41.52429764,84.288,84.222,0.478567]
[1771002030914,0.42782588,84.252,84.222,0.478567]
[1771002031119,10.459216,84.25,84.222,0.478567]
[1771002031314,44.44,84.263,84.241,0.478567]
[1771002031496,44.44,84.263,84.233,0.478567]
[1771002031822,0.42782588,84.259,84.224,0.478567]
[1771002032022,0.42782588,84.259,84.23,10.459216]
[1771002032520,44.44,84.263,84.241,0.478567]
[1771002033099,44.46,84.269,84.241,0.478567]
[1771002033294,11.86662729,84.27,84.242,0.478567]
[1771002033900,0.42765276,84.259,84.22,11.037783]
[1771002034097,0.42756769,84.257,84.221,0.478567]
[1771002034396,0.42756769,84.274,84.23,10.459216]
[1771002034594,0.42756769,84.269,84.233,0.478567]
[1771002034819,0.42756769,84.259,84.23,10.459216]
[1771002035006,0.42756769,84.259,84.225,0.478567]
[1771002035320,0.4274836,84.257,84.225,0.478567]
[1771002036314,0.42740048,84.249,84.22,0.1]
[1771002036614,0.42740048,84.239,84.21,0.1]
[1771002036815,0.32731831,84.229,84.21,0.1]
[1771002037601,11.8720728,84.232,84.21,0.1]
[1771002037916,11.87134776,84.237,84.21,0.1]
[1771002038224,44.5,84.248,84.21,0.1]
[1771002038225,10.459216,84.26,84.211,0.50208462]
[1771002038418,44.82715679,84.259,84.221,0.50208462]
[1771002038717,11.86774584,84.262,84.221,0.50208462]
[1771002038718,10.459216,84.25,84.221,0.50208462]
[1771002038919,44.84715679,84.258,84.221,0.50208462]
[1771002038920,0.32707741,84.257,84.221,0.50208462]
[1771002039106,44.52,84.258,84.23,10.459216]
[1771002039417,44.52,84.258,84.221,0.50208462]
[1771002039418,11.86859096,84.256,84.221,11.87346634]
[1771002039606,10.459216,84.25,84.222,0.50208462]
[1771002039801,54.999216,84.25,84.222,0.50208462]
[1771002040001,54.999216,84.25,84.21,11.06130062]
[1771002040002,0.32699895,84.249,84.21,11.06130062]
[1771002040202,0.32699895,84.249,84.212,0.50208462]
[1771002040408,44.56,84.248,84.212,0.50208462]
[1771002040610,44.56,84.247,84.212,0.50208462]
[1771002041004,44.56,84.247,84.221,0.50208462]
[1771002041205,10.459216,84.25,84.221,0.50208462]
[1771002041413,0.32692139,84.247,84.213,11.87465118]
[1771002041606,0.32692139,84.247,84.213,12.3767358]
[1771002041808,0.32692139,84.247,84.214,0.50208462]
[1771002042605,11.86921658,84.252,84.221,0.50208462]
[1771002042819,10.459216,84.24,84.213,12.3767358]
[1771002043014,10.459216,84.24,84.214,0.50208462]
[1771002043223,10.459216,84.23,84.21,0.1]
[1771002043529,10.459216,84.24,84.21,0.60208462]
[1771002043702,0.32676894,84.244,84.211,0.50208462]
[1771002043904,10.459216,84.22,84.21,0.1]
[1771002044107,10.78591002,84.22,84.191,11.87775415]
[1771002044531,10.78591002,84.22,84.192,0.50208462]
[1771002044921,10.78591002,84.21,84.181,0.50208462]
[1771002045125,10.78591002,84.21,84.186,11.87836032]
[1771002045425,10.459216,84.21,84.186,11.87836032]
[1771002045734,10.459216,84.21,84.188,0.50208462]
[1771002045918,44.58,84.215,84.188,0.50208462]
[1771002046117,44.58,84.215,84.182,11.87902401]
[1771002046118,44.58,84.215,84.189,0.50208462]
[1771002046336,44.58,84.215,84.19,0.60208462]
[1771002046521,44.58,84.218,84.19,0.60208462]
[1771002046715,10.459216,84.21,84.19,0.60208462]
[1771002047014,10.459216,84.21,84.19,0.1]
[1771002047217,0.2264744,84.199,84.17,0.1]
[1771002047537,47.49141266,84.226,84.17,0.1]
[1771002047538,10.459216,84.21,84.171,0.50311395]
[1771002047712,44.6,84.209,84.181,0.50311395]
[1771002048317,44.6,84.211,84.181,0.50311395]
[1771002048815,44.6,84.218,84.181,0.50311395]
[1771002049023,44.6,84.218,84.191,0.50311395]
[1771002049333,55.039216,84.22,84.191,0.50311395]
[1771002049630,55.039216,84.22,84.17,41.58251157]
[1771002049631,11.87521523,84.209,84.184,0.50311395]
[1771002049810,11.87521523,84.209,84.185,61.9]
[1771002050223,10.459216,84.2,84.185,61.9]
[1771002050940,10.459216,84.2,84.169,0.13345951]
[1771002051518,11.87662561,84.199,84.169,0.13345951]
[1771002051719,10.459216,84.19,84.169,0.13345951]
[1771002051934,10.459216,84.18,84.16,0.1]
[1771002052120,10.459216,84.17,84.16,0.1]
[1771002052440,44.6,84.17,84.16,0.1]
[1771002052620,44.6,84.17,84.16,0.60311395]
[1771002052817,44.06654049,84.17,84.16,0.1]
[1771002053138,10.459216,84.19,84.16,0.60311395]
[1771002053340,44.62,84.189,84.16,0.60311395]
[1771002053724,10.459216,84.18,84.16,0.60311395]
[1771002054128,11.87817741,84.188,84.16,0.60311395]
[1771002054328,10.459216,84.18,84.16,0.60311395]
[1771002055124,10.459216,84.18,84.16,0.1]
[1771002055441,44.64,84.179,84.16,0.1]
[1771002055750,11.87972961,84.177,84.16,0.1]
[1771002055938,44.64,84.178,84.161,0.50311395]
[1771002056239,10.459216,84.18,84.16,0.1]
[1771002056430,44.66,84.181,84.16,0.60311395]
[1771002056627,10.459216,84.18,84.16,0.60311395]
[1771002057024,44.66,84.181,84.16,0.60311395]
[1771002057442,10.459216,84.18,84.16,0.1]
[1771002057737,44.68,84.179,84.16,0.1]
[1771002057947,56.55958849,84.178,84.16,0.1]
[1771002058122,56.55958849,84.178,84.15,0.1]
[1771002058123,10.459216,84.17,84.15,0.1]
[1771002058322,10.459216,84.16,84.15,0.1]
[1771002058522,10.459216,84.17,84.15,0.1]
[1771002059137,10.459216,84.16,84.15,0.1]
[1771002059324,44.7,84.169,84.15,0.1]
[1771002059648,44.7,84.168,84.15,0.1]
[1771002060751,44.72,84.167,84.15,0.1]
[1771002061040,44.72,84.166,84.15,0.60311395]
[1771002061244,10.459216,84.17,84.15,0.60311395]
[1771002061625,44.72,84.169,84.15,0.60311395]
[1771002062024,44.72,84.169,84.15,0.1]
[1771002062230,10.459216,84.17,84.15,0.1]
[1771002062537,10.459216,84.19,84.151,0.50311395]
[1771002062723,44.74,84.189,84.151,0.50311395]
[1771002062926,10.459216,84.18,84.151,0.50311395]
[1771002063137,41.56769596,84.2,84.151,0.50311395]
[1771002063138,44.74,84.188,84.151,0.50311395]
[1771002063431,44.76,84.187,84.151,0.50311395]
[1771002064123,44.76,84.187,84.153,0.50311395]
[1771002064323,10.459216,84.2,84.161,0.50311395]
[1771002064541,10.459216,84.19,84.161,0.50311395]
[1771002064747,10.459216,84.17,84.15,0.1]
[1771002065044,44.78,84.169,84.15,0.1]
[1771002065248,10.459216,84.17,84.15,0.1]
[1771002065444,44.78,84.169,84.15,0.1]
[1771002066148,10.459216,84.16,84.14,5.66143994]
[1771002066450,10.459216,84.15,84.14,5.66143994]
[1771002066653,44.78,84.149,84.14,5.66143994]
[1771002066833,41.58349966,84.168,84.14,5.66143994]
[1771002066834,44.78,84.148,84.14,5.66143994]
[1771002068026,10.459216,84.16,84.14,5.66143994]
[1771002068226,44.8,84.156,84.14,5.66143994]
[1771002068633,22.33711123,84.19,84.151,0.50311395]
[1771002068827,44.8,84.189,84.151,0.50311395]
[1771002069031,10.459216,84.21,84.171,0.50311395]
[1771002069230,11.87327847,84.223,84.19,10.96232995]
[1771002069458,44.8,84.227,84.191,0.50311395]
[1771002069636,10.459216,84.22,84.191,0.50311395]
[1771002070149,44.8,84.227,84.192,11.87761307]
[1771002070357,44.8,84.227,84.193,0.50311395]
[1771002070530,44.8,84.227,84.2,10.459216]
[1771002070733,44.8,84.227,84.192,41.57164575]
[1771002070734,11.87086645,84.24,84.21,10.459216]
[1771002071045,10.459216,84.3,84.22,10.459216]
[1771002071046,10.459216,84.26,84.22,10.459216]
[1771002071346,10.459216,84.25,84.211,0.50311395]
[1771002071546,44.8,84.249,84.211,0.50311395]
[1771002071946,44.8,84.249,84.22,10.459216]
[1771002072336,44.8,84.249,84.22,22.33284961]
[1771002072747,10.459216,84.27,84.23,10.459216]
[1771002073052,11.86591515,84.275,84.241,0.50311395]
[1771002073259,44.8,84.274,84.241,0.50311395]
[1771002073833,29.66070876,84.287,84.22,41.55779414]
[1771002073834,10.459216,84.29,84.251,0.50311395]
[1771002074051,10.459216,84.28,84.24,10.459216]
[1771002074241,11.86816838,84.259,84.223,0.50311395]
[1771002074443,44.8,84.258,84.223,0.50311395]
[1771002074636,44.8,84.258,84.195,42.96]
[1771002074637,10.459216,84.25,84.214,0.50311395]
[1771002075040,10.459216,84.24,84.214,0.50311395]
[1771002075560,44.8,84.239,84.214,0.50311395]
[1771002076158,44.8,84.238,84.214,0.50311395]
[1771002076332,44.8,84.238,84.216,0.50311395]
[1771002076534,44.8,84.238,84.199,29.69156403]
[1771002076535,11.87126797,84.237,84.207,0.50311395]
[1771002076737,44.8,84.238,84.208,0.50311395]
[1771002077151,44.8,84.238,84.202,11.87611799]
[1771002077152,10.459216,84.23,84.202,11.87611799]
[1771002077478,10.459216,84.22,84.18,10.459216]
[1771002077755,10.459216,84.22,84.181,11.87916513]
[1771002078333,4.61729252,84.246,84.181,11.87916513]
[1771002078334,10.459216,84.21,84.181,11.87916513]
[1771002078531,44.8,84.213,84.181,41.57707796]
[1771002078865,0.48995372,84.209,84.16,40.16433938]
[1771002079164,10.459216,84.2,84.161,11.88198809]
[1771002079533,44.8,84.208,84.171,0.50064841]
[1771002079934,44.8,84.208,84.183,0.50064841]
[1771002080137,0.48995372,84.207,84.174,0.50064841]
[1771002080358,42.05518143,84.205,84.174,0.50064841]
[1771002080557,10.459216,84.19,84.15,10.459216]
[1771002080858,0.48995372,84.188,84.15,10.459216]
[1771002081162,44.82,84.189,84.141,0.50064841]
[1771002081163,0.48995372,84.179,84.141,0.50064841]
[1771002081340,0.48995372,84.177,84.141,0.50064841]
[1771002081540,0.48995372,84.177,84.14,16.12065594]
[1771002081737,0.48995372,84.169,84.14,5.66143994]
[1771002081950,0.48995372,84.169,84.122,0.50064841]
[1771002082150,0.48995372,84.169,84.13,10.459216]
[1771002082350,0.48995372,84.167,84.13,10.459216]
[1771002082952,0.48995372,84.167,84.13,10.47772635]
[1771002083142,0.48995372,84.167,84.131,0.50064841]
[1771002083460,0.48995372,84.167,84.131,0.00064841]
[1771002084449,0.48995372,84.165,84.131,0.00064841]
[1771002084842,0.48995372,84.159,84.12,10.47772635]
[1771002086045,41.58448778,84.166,84.14,10.47772635]
[1771002086046,0.48995372,84.165,84.14,10.47772635]
[1771002086256,45.32995372,84.165,84.15,10.47772635]
[1771002086457,11.88156456,84.164,84.15,10.47772635]
[1771002086652,11.88156456,84.164,84.139,0.50064841]
[1771002086863,11.88156456,84.164,84.14,10.97837476]
[1771002087066,11.87989139,84.176,84.151,0.50064841]
[1771002087374,11.87922876,84.181,84.161,0.50064841]
[1771002087672,12.36918248,84.181,84.16,10.47772635]
[1771002088464,11.87944736,84.179,84.152,0.50064841]
[1771002089051,41.57806578,84.179,84.152,0.50064841]
[1771002089457,44.9,84.178,84.152,0.50064841]
[1771002090369,41.57806578,84.179,84.141,0.50064841]
[1771002090370,0.48995372,84.175,84.141,0.50064841]
[1771002090573,0.48995372,84.175,84.143,0.50064841]
[1771002090886,10.47772635,84.19,84.142,11.88467115]
[1771002090887,0.45944852,84.196,84.151,0.49830192]
[1771002091168,44.92,84.195,84.151,0.49830192]
[1771002091378,44.9,84.194,84.151,0.49830192]
[1771002092168,44.9,84.194,84.161,0.49830192]
[1771002092364,11.87747199,84.193,84.161,0.49830192]
[1771002092561,11.87747199,84.193,84.162,0.49830192]
[1771002093455,11.87723943,84.195,84.162,0.49830192]
[1771002093663,44.94,84.196,84.162,0.49830192]
[1771002094078,29.68613611,84.215,84.161,41.58695013]
[1771002094079,11.87436131,84.216,84.171,0.49830192]
[1771002094373,44.94,84.215,84.181,0.49830192]
[1771002094570,0.45944852,84.213,84.181,0.49830192]
[1771002095273,0.45944852,84.199,84.161,0.49830192]
[1771002096271,10.47772635,84.19,84.161,0.49830192]
[1771002096476,0.45944852,84.186,84.15,0.49830192]
[1771002096773,0.45944852,84.184,84.15,0.49830192]
[1771002097074,12.34227843,84.219,84.171,0.4620883]
[1771002097278,12.34227843,84.219,84.181,0.4620883]
[1771002097462,44.96,84.218,84.181,0.4620883]
[1771002098061,44.96,84.218,84.191,0.4620883]
[1771002098275,44.94,84.232,84.201,0.4620883]
[1771002098582,44.94,84.232,84.169,42.72]
[1771002098583,0.46847324,84.227,84.194,0.4620883]
[1771002099089,11.87222229,84.231,84.2,10.93981465]
[1771002099376,0.46847324,84.229,84.2,0.4620883]
[1771002100455,0.46847324,84.225,84.2,0.4620883]
[1771002100654,0.46847324,84.209,84.176,0.4620883]
[1771002100855,0.46847324,84.189,84.147,0.4620883]
[1771002101078,0.46847324,84.187,84.147,0.4620883]
[1771002101276,0.46847324,84.187,84.151,0.4620883]
[1771002102165,44.96,84.186,84.161,0.4620883]
[1771002102374,44.96,84.192,84.161,0.4620883]
[1771002102572,10.47772635,84.19,84.161,0.4620883]
[1771002102877,10.94619959,84.19,84.161,0.4620883]
[1771002103078,0.46847324,84.169,84.113,0.4620883]
[1771002103380,0.46847324,84.149,84.115,0.4620883]
[1771002103583,0.46847324,84.147,84.115,0.4620883]
[1771002104079,0.46847324,84.159,84.115,0.4620883]
[1771002104374,44.96,84.158,84.115,0.4620883]
[1771002104569,0.46847324,84.155,84.115,0.4620883]
[1771002104776,10.47772635,84.15,84.115,0.4620883]
[1771002104987,0.46847324,84.155,84.117,0.4620883]
[1771002105179,44.96,84.154,84.117,0.4620883]
[1771002106260,0.46847324,84.153,84.117,0.4620883]
[1771002106455,0.46847324,84.149,84.097,4.61729252]
[1771002106656,29.70214977,84.169,84.111,0.4620883]
[1771002106891,11.88001188,84.175,84.141,0.4620883]
[1771002107062,0.46847324,84.181,84.141,0.4620883]
[1771002107259,45.0,84.193,84.161,0.4620883]
[1771002107462,0.46847324,84.169,84.128,0.4620883]
[1771002107664,45.0,84.168,84.128,0.4620883]
[1771002107964,10.47772635,84.15,84.117,0.4620883]
[1771002108174,0.46847324,84.149,84.117,0.4620883]
[1771002108486,45.44847324,84.148,84.117,0.4620883]
[1771002108661,11.88396496,84.147,84.117,0.4620883]
[1771002108856,44.98,84.164,84.13,10.47772635]
[1771002109071,0.46847324,84.149,84.107,0.4620883]
[1771002109270,0.46847324,84.149,84.074,5.36086188]
[1771002109271,0.46847324,84.139,84.097,0.4620883]
[1771002109580,0.46847324,84.137,84.101,0.4620883]
[1771002110062,10.47772635,84.16,84.111,0.4620883]
[1771002110256,45.42847324,84.159,84.111,0.4620883]
[1771002110455,0.46847324,84.158,84.111,0.4620883]
[1771002110656,11.88368251,84.149,84.113,0.4620883]
[1771002110964,10.47772635,84.14,84.107,11.88953965]
[1771002111165,0.46847324,84.148,84.111,0.4620883]
[1771002111381,44.96,84.148,84.111,0.4620883]
[1771002111793,47.5202154,84.175,84.107,11.88953965]
[1771002111794,0.46847324,84.22,84.143,0.4620883]
[1771002111967,11.87352323,84.221,84.151,0.4620883]
[1771002111968,0.46847324,84.199,84.151,0.4620883]
[1771002112678,0.46847324,84.199,84.134,5.36086188]
[1771002112679,11.87521523,84.209,84.172,0.4620883]
[1771002113081,0.46847324,84.223,84.191,0.4620883]
[1771002113892,0.46847324,84.219,84.18,10.93981465]
[1771002114081,0.46847324,84.209,84.172,0.4620883]
[1771002114875,11.87535626,84.208,84.173,11.88029415]
[1771002115083,0.46847324,84.23,84.19,10.93981465]
[1771002115288,0.46847324,84.23,84.2,10.47772635]
[1771002115593,0.46847324,84.23,84.173,41.58102954]
[1771002115594,0.46847324,84.255,84.22,10.47772635]
[1771002115782,0.46847324,84.254,84.211,0.4620883]
[1771002116289,0.46847324,84.254,84.22,10.47772635]
[1771002116483,0.46847324,84.249,84.201,0.4620883]
[1771002116877,0.46847324,84.237,84.202,11.87620246]
[1771002117082,0.46847324,84.237,84.203,0.4620883]
[1771002117770,0.46847324,84.237,84.21,10.47772635]
[1771002118196,10.47772635,84.25,84.211,0.4620883]
[1771002118489,0.46847324,84.269,84.203,0.4620883]
[1771002118795,0.46847324,84.249,84.211,0.4620883]
[1771002118982,0.46847324,84.247,84.212,11.87479219]
[1771002119171,0.46847324,84.247,84.213,0.4620883]
[1771002119667,0.46847324,84.261,84.23,10.47772635]
[1771002119868,0.46847324,84.261,84.212,11.87479219]
[1771002119869,0.46847324,84.273,84.24,10.47772635]
[1771002120075,10.67772635,84.28,84.214,5.36086188]
[1771002120076,0.2,84.28,84.25,10.47772635]
[1771002120276,11.86535198,84.279,84.25,10.47772635]
[1771002120466,11.86535198,84.279,84.241,0.4620883]
[1771002120675,0.2,84.28,84.261,0.45946594]
[1771002120874,0.2,84.28,84.27,10.47772635]
[1771002121074,10.47772635,84.31,84.27,10.47772635]
[1771002121075,11.86225548,84.301,84.27,10.47772635]
[1771002122497,8.93439379,84.306,84.28,10.47772635]
[1771002122697,0.46430419,84.309,84.27,10.47772635]
[1771002123002,0.46430419,84.309,84.241,4.61729252]
[1771002123003,0.46430419,84.299,84.261,11.86788668]
[1771002123495,0.46430419,84.299,84.261,12.32735262]
[1771002123696,0.46430419,84.299,84.262,0.45946594]
[1771002124294,0.46430419,84.311,84.28,10.47772635]
[1771002124675,11.8609892,84.31,84.28,10.47772635]
[1771002124876,0.46430419,84.309,84.275,11.86584333]
[1771002125098,0.46430419,84.309,84.28,10.47772635]
[1771002125305,44.86,84.316,84.281,0.45946594]
[1771002125491,44.86,84.316,84.27,22.34430196]
[1771002125492,0.46430419,84.309,84.27,22.34430196]
[1771002125700,0.46430419,84.299,84.261,12.32735262]
[1771002125899,0.46430419,84.309,84.28,10.47772635]
[1771002126201,44.86,84.316,84.261,11.86788668]
[1771002126202,44.86,84.316,84.291,0.45946594]
[1771002126513,12.32459002,84.315,84.28,10.93719229]
[1771002126682,44.86,84.316,84.271,11.86647838]
[1771002126683,0.46430419,84.309,84.271,11.86647838]
[1771002127316,44.86,84.316,84.291,0.45946594]
[1771002127608,44.86,84.316,84.271,41.53267434]
[1771002127609,45.32430419,84.316,84.282,0.45946594]
[1771002128002,45.32430419,84.316,84.29,10.47772635]
[1771002128204,45.32430419,84.316,84.282,0.45946594]
[1771002128615,0.46430419,84.314,84.272,0.45946594]
[1771002128787,0.46430419,84.309,84.272,0.45946594]
[1771002128987,11.86028583,84.315,84.258,0.45946594]
[1771002128988,0.46430419,84.299,84.258,0.45946594]
[1771002129293,0.46430419,84.289,84.241,0.45946594]
[1771002129513,0.46430419,84.289,84.2,47.50543684]
[1771002129514,0.46430419,84.269,84.221,11.87352323]
[1771002129687,0.46430419,84.259,84.221,11.87352323]
[1771002130192,10.47772635,84.26,84.2,42.36]
[1771002130193,10.47772635,84.24,84.209,0.45946594]
[1771002130409,0.46430419,84.239,84.199,0.45946594]
[1771002130587,42.2,84.261,84.19,10.47772635]
[1771002130588,0.46430419,84.227,84.19,10.47772635]
[1771002130789,0.46430419,84.227,84.191,11.87775415]
[1771002131184,11.87194561,84.233,84.2,10.47772635]
[1771002131486,44.84,84.249,84.211,0.45946594]
[1771002131800,0.46430419,84.248,84.211,0.45946594]
[1771002132416,10.94203054,84.23,84.191,41.57213953]
[1771002132605,0.46430419,84.227,84.191,12.33722009]
[1771002133216,0.46430419,84.219,84.181,11.87916513]
[1771002133423,22.81289348,84.24,84.191,0.45946594]
[1771002133590,12.33516713,84.24,84.201,0.45946594]
[1771002133796,22.81289348,84.24,84.201,0.45946594]
[1771002133990,12.33516713,84.24,84.201,0.45946594]
[1771002134185,22.81289348,84.24,84.201,0.45946594]
[1771002134633,10.47772635,84.25,84.203,0.45946594]
[1771002134792,0.46430419,84.263,84.221,0.45946594]
[1771002135111,0.46430419,84.249,84.202,41.56670862]
[1771002135293,0.46430419,84.239,84.199,42.32]
[1771002135499,10.47772635,84.22,84.187,11.8783185]
[1771002135694,45.30430419,84.229,84.188,0.45946594]
[1771002135917,44.84,84.238,84.201,0.45946594]
[1771002136210,0.46430419,84.241,84.201,0.45946594]
[1771002136598,44.84,84.247,84.187,41.57411476]
[1771002136599,11.8694362,84.25,84.212,11.87479219]
[1771002136917,22.34716255,84.25,84.212,12.33425813]
[1771002137219,0.46430419,84.256,84.22,0.45946594]
[1771002137414,0.46430419,84.249,84.212,11.87479219]
[1771002137916,0.46430419,84.249,84.212,12.33425813]
[1771002138110,10.47772635,84.24,84.201,12.33580945]
[1771002138327,0.46430419,84.239,84.201,12.33580945]
[1771002138513,44.84,84.247,84.211,0.45946594]
[1771002138814,11.86830498,84.259,84.221,0.45946594]
[1771002139407,0.46430419,84.249,84.213,0.45946594]
[1771002139608,11.86830498,84.259,84.221,0.45946594]
[1771002139916,0.46430419,84.258,84.221,0.45946594]
[1771002140301,0.46430419,84.249,84.212,11.87479219]
[1771002140504,11.86830498,84.259,84.195,11.87718985]
[1771002140505,0.46430419,84.239,84.195,11.87718985]
[1771002140708,0.46430419,84.229,84.19,11.87779338]
[1771002141023,10.94203054,84.22,84.19,11.87779338]
[1771002141622,0.46430419,84.227,84.191,0.45946594]
[1771002141812,0.46430419,84.219,84.17,10.93719229]
[1771002141995,0.46430419,84.21,84.171,0.45946594]
[1771002142200,0.46430419,84.209,84.17,10.47772635]
[1771002142400,44.86,84.208,84.171,0.45946594]
[1771002142610,44.86,84.213,84.171,0.45946594]
[1771002142832,44.86,84.213,84.18,10.93719229]
[1771002143028,0.46430419,84.209,84.172,11.88043529]
[1771002143219,0.46430419,84.209,84.173,0.45946594]
[1771002143401,0.46430419,84.209,84.154,5.36086188]
[1771002143402,0.46430419,84.179,84.141,0.45946594]
[1771002143727,0.46430419,84.169,84.141,11.88481239]
[1771002143896,44.86,84.175,84.142,0.45946594]
[1771002144101,44.86,84.18,84.151,0.45946594]
[1771002144401,10.47772635,84.2,84.151,0.45946594]
[1771002144610,0.46430419,84.198,84.151,0.45946594]